bitfinex/quotes_ETHUSD_20220201
["timestamp","ask_amount","ask_price","bid_price","bid_amount"]
[1643692906129,1.42176823,2746.0,2745.9,1.94307217]
[1643692906327,1.42176823,2746.0,2745.9,3.1089652]
[1643692906728,0.1819,2747.0,2746.0,3.9]
[1643692906969,4.8055,2747.1,2746.1,2.0]
[1643692907132,1.5345302,2747.0,2746.2,0.91013]
[1643692907572,1.5345302,2747.0,2746.2,0.3]
[1643692907999,1.5345302,2747.0,2746.4,0.35732403]
[1643692908173,1.5345302,2747.0,2746.5,0.91011]
[1643692908376,1.5345302,2747.0,2746.7,0.86715044]
[1643692908573,1.5345302,2747.0,2746.7,1.16715044]
[1643692909178,3.7519,2747.2,2746.7,1.16715044]
[1643692909374,1.53448323,2747.1,2746.7,1.16715044]
[1643692909573,0.1819,2747.3,2746.7,1.16715044]
[1643692909574,1.53448323,2747.0,2746.7,1.16715044]
[1643692909775,0.33735575,2747.2,2746.7,1.16715044]
[1643692909975,1.53447309,2747.1,2746.7,0.3]
[1643692910774,1.53447309,2747.0,2746.7,0.3]
[1643692910976,0.1819,2747.3,2746.8,0.80707276]
[1643692911222,1.53447529,2747.2,2746.7,0.3]
[1643692911624,1.90221203,2747.2,2746.7,0.3]
[1643692911826,1.53447529,2747.1,2746.7,0.3]
[1643692912658,0.1819,2747.3,2746.7,0.3]
[1643692912827,1.53445243,2747.2,2746.7,0.3]
[1643692913429,1.90873127,2747.2,2746.7,0.3]
[1643692913628,1.53445243,2747.1,2746.7,0.3]
[1643692915171,0.1819,2747.3,2746.7,0.3]
[1643692915372,1.53444999,2747.2,2746.7,0.3]
[1643692917477,1.53444999,2747.2,2746.6,0.3]
[1643692917679,1.53444999,2747.2,2746.5,2.25516511]
[1643692919224,1.53444999,2747.2,2746.5,1.5101823]
[1643692919430,1.53444999,2747.2,2746.4,0.1819]
[1643692919431,2.04043071,2747.1,2746.4,0.1819]
[1643692919633,1.53444999,2747.0,2746.0,2.0023638]
[1643692919880,1.98555377,2746.9,2746.0,2.0023638]
[1643692920223,0.41030275,2746.5,2746.0,2.0023638]
[1643692920625,1.95262754,2746.6,2746.0,2.0023638]
[1643692920829,1.93043812,2746.4,2746.1,0.3]
[1643692921028,0.87809063,2746.7,2746.1,0.3]
[1643692921227,2.82166429,2746.7,2745.7,0.1819]
[1643692921427,2.82166429,2746.7,2745.7,0.4819]
[1643692921626,1.2307,2746.7,2745.7,1.39226]
[1643692921826,1.2307,2746.7,2746.2,0.36457333]
[1643692922038,1.2307,2746.7,2746.1,0.9102999]
[1643692922227,1.2307,2746.7,2746.2,0.3]
[1643692922493,2.77961523,2746.6,2746.1,0.9102999]
[1643692922796,0.1819,2746.5,2746.0,0.3]
[1643692923015,0.1819,2746.6,2745.9,1.30040519]
[1643692923193,0.1819,2746.7,2746.0,0.37671478]
[1643692923393,0.01211927,2747.0,2746.0,0.37671478]
[1643692923394,0.1819,2746.9,2746.1,0.91022]
[1643692923594,1.53466242,2746.8,2746.1,0.7116424]
[1643692923896,0.71183519,2746.7,2746.1,0.6]
[1643692924092,0.71183519,2746.7,2746.1,0.3]
[1643692924493,1.53471395,2746.6,2745.9,1.30040519]
[1643692924698,1.53471395,2746.6,2745.9,0.7819]
[1643692924891,0.33967791,2746.2,2745.9,0.7819]
[1643692925116,1.89603204,2746.5,2745.9,0.7819]
[1643692925592,0.1819,2746.4,2745.9,0.3]
[1643692925792,0.1819,2746.4,2745.6,0.6]
[1643692925997,0.1819,2746.4,2745.7,0.73500425]
[1643692926425,0.1819,2746.4,2746.1,0.5]
[1643692926830,0.1819,2746.6,2746.1,0.5]
[1643692927028,1.5347554,2746.5,2745.8,1.820613]
[1643692927233,0.1819,2746.4,2745.9,0.3]
[1643692927430,3.5288,2746.7,2745.9,0.3]
[1643692927431,0.1819,2746.6,2745.9,0.3]
[1643692928331,1.09176459,2746.6,2745.9,1.21034]
[1643692928731,0.41157927,2746.4,2745.9,1.20925979]
[1643692929134,0.41157927,2746.4,2746.0,0.91031]
[1643692931782,0.41157927,2746.4,2746.0,1.21031]
[1643692936129,3.5288,2746.7,2746.0,1.21031]
[1643692936331,1.53472568,2746.6,2746.0,1.21031]
[1643692936730,1.53472568,2746.6,2746.0,0.91031]
[1643692937130,1.53472568,2746.6,2746.0,1.21031]
[1643692937780,1.53472568,2746.6,2746.0,0.91031]
[1643692937781,0.43503873,2746.4,2746.0,0.91031]
[1643692937983,0.43503873,2746.4,2746.0,1.21031]
[1643692941155,0.43503873,2746.4,2746.0,0.91031]
[1643692941332,0.43503873,2746.4,2745.9,0.3]
[1643692941533,0.43503873,2746.4,2745.8,2.302513]
[1643692942742,0.43503873,2746.4,2745.9,0.3]
[1643692942938,1.53479718,2746.3,2745.9,0.3]
[1643692943740,1.53479718,2746.3,2745.8,2.302513]
[1643692944043,1.86822568,2746.2,2745.8,2.302513]
[1643692944245,1.86822568,2746.2,2744.9,0.523]
[1643692944246,0.1819,2746.1,2745.3,0.3110908]
[1643692944447,2.24088128,2746.1,2745.2,0.9106243]
[1643692944644,3.60230476,2746.0,2745.2,0.9106243]
[1643692944878,1.53498128,2745.9,2745.2,0.9106243]
[1643692945483,1.53498128,2745.9,2745.3,4.94432955]
[1643692945876,1.53498128,2745.9,2745.3,1.44432955]
[1643692946680,1.53498128,2745.9,2745.3,1.08318804]
[1643692946977,1.53498128,2745.9,2745.3,0.3]
[1643692947377,1.53498128,2745.9,2745.2,0.91056]
[1643692947585,1.53498128,2745.9,2745.3,0.3]
[1643692947889,0.34009515,2745.8,2745.3,0.3]
[1643692948084,0.34009515,2745.8,2745.3,1.2105502]
[1643692948383,1.11770522,2746.0,2745.3,1.2105502]
[1643692948636,1.53500475,2745.9,2745.3,1.2105502]
[1643692949839,0.44973944,2745.9,2745.3,1.2105502]
[1643692950042,0.44886296,2745.9,2745.3,1.2105502]
[1643692950447,1.11770522,2746.0,2745.3,1.2105502]
[1643692950651,1.7251,2746.1,2745.3,1.2105502]
[1643692950844,1.53498229,2746.0,2745.3,3.0315502]
[1643692954183,2.05978132,2746.1,2745.3,3.0315502]
[1643692954381,1.53494834,2746.0,2745.3,3.0315502]
[1643692954580,1.53578132,2746.1,2745.3,3.0315502]
[1643692954779,1.53494313,2746.0,2745.3,3.0315502]
[1643692954980,1.53578132,2746.1,2745.3,3.0315502]
[1643692955179,1.2011,2746.1,2745.3,3.0315502]
[1643692955586,1.2011,2746.1,2745.5,1.82088]
[1643692955783,1.2011,2746.1,2745.6,0.3]
[1643692956036,1.2011,2746.1,2745.7,0.1819]
[1643692956535,1.2011,2746.1,2745.9,0.95438161]
[1643692956739,3.815,2746.4,2745.9,1.86473631]
[1643692956934,1.53476883,2746.3,2746.0,0.3]
[1643692957133,3.91899945,2746.6,2746.0,0.3]
[1643692957336,1.53475312,2746.5,2746.0,0.3]
[1643692962590,1.53475312,2746.5,2745.9,1.5201878]
[1643692962791,2.24066338,2746.5,2745.9,1.5201878]
[1643692962990,1.53475312,2746.4,2745.9,1.5201878]
[1643692963728,1.53475312,2746.4,2745.9,1.2201878]
[1643692964132,1.53475312,2746.4,2745.9,1.21859334]
[1643692966534,1.53475312,2746.4,2745.9,0.29840554]
[1643692966733,1.53475312,2746.4,2745.7,0.69182467]
[1643692968012,1.53475312,2746.4,2745.7,1.60227347]
[1643692969208,1.53475312,2746.4,2745.7,1.2104488]
[1643692970610,1.53475312,2746.4,2745.7,1.6134051]
[1643692973337,1.53475312,2746.4,2745.7,1.2104488]
[1643692975779,1.53475312,2746.4,2745.7,1.63776984]
[1643692976182,1.53475312,2746.4,2745.7,1.2104488]
[1643692977182,0.31667679,2746.2,2745.7,1.2104488]
[1643692977421,1.53475312,2746.1,2745.7,1.2104488]
[1643692979836,1.53475312,2746.0,2745.7,1.2104488]
[1643692980036,0.88781026,2746.5,2745.7,1.2104488]
[1643692980233,1.53483117,2746.4,2745.7,1.2104488]
[1643692980634,1.53483117,2746.4,2746.0,0.44940331]
[1643692980836,1.53483117,2746.4,2746.0,0.74940331]
[1643692983692,1.53483117,2746.4,2746.0,0.3]
[1643692985091,0.182,2746.5,2746.0,0.3]
[1643692985914,0.90749662,2746.6,2746.0,0.3]
[1643692986964,1.59319775,2746.6,2746.0,0.3]
[1643692989977,0.90749662,2746.6,2746.0,0.3]
[1643692990581,1.59319775,2746.6,2746.0,0.3]
[1643692990987,0.90749662,2746.6,2746.0,0.3]
[1643692991580,1.59319775,2746.6,2746.0,0.3]
[1643692991880,0.90749662,2746.6,2746.0,0.3]
[1643692993087,3.83649849,2746.6,2746.0,0.3]
[1643692993484,1.59319775,2746.6,2746.0,0.3]
[1643692993735,0.90749662,2746.6,2746.0,0.3]
[1643692994937,6.4186551,2746.7,2746.1,1.92468378]
[1643692994938,2.20415397,2746.7,2746.1,1.92468378]
[1643692995138,3.7217,2747.1,2746.1,3.20642663]
[1643692995139,4.40740113,2747.1,2746.1,3.20642663]
[1643692995339,3.7217,2747.1,2746.2,0.3]
[1643692995535,3.7217,2747.1,2746.3,2.14357262]
[1643692995740,1.84560113,2747.3,2746.3,2.44357262]
[1643692995938,1.56058001,2747.3,2746.7,0.66935532]
[1643692996337,1.56058001,2747.3,2746.7,0.96935532]
[1643692996536,1.56058001,2747.3,2746.8,0.9100756]
[1643692996738,1.56058001,2747.3,2746.8,1.2100756]
[1643692997138,1.56058001,2747.3,2746.8,0.3]
[1643692998491,1.1599,2747.3,2746.8,0.3]
[1643692998892,1.1599,2747.3,2746.7,0.96935532]
[1643692999895,1.1599,2747.3,2746.8,0.3]
[1643693001642,1.1599,2747.3,2746.7,1.37169402]
[1643693004347,1.1599,2747.3,2746.7,0.96935532]
[1643693004548,1.15376113,2747.3,2746.7,0.96935532]
[1643693005182,1.53437671,2747.2,2746.7,0.96935532]
[1643693005383,1.53437671,2747.2,2746.7,1.30542668]
[1643693005987,1.53437671,2747.2,2746.8,0.3]
[1643693006189,3.6455,2747.6,2746.9,0.91002]
[1643693006487,1.53413253,2747.5,2747.0,0.1819]
[1643693006687,3.6455,2747.6,2747.0,0.1819]
[1643693006887,3.6455,2747.6,2746.9,1.1819]
[1643693007086,4.07556125,2747.6,2746.9,0.1819]
[1643693007289,4.07556125,2747.6,2746.9,1.09187]
[1643693007892,4.07556125,2747.6,2747.1,0.90992]
[1643693008097,4.07556125,2747.6,2747.2,0.3]
[1643693008632,1.53418497,2747.5,2747.2,0.3]
[1643693010039,1.53418497,2747.5,2746.9,1.6919]
[1643693010236,1.53418497,2747.5,2746.9,1.51]
[1643693012509,0.18485446,2748.6,2747.3,0.01233588]
[1643693012709,0.1819,2748.6,2747.9,0.0126918]
[1643693012912,0.00295446,2748.7,2748.0,0.7059]
[1643693013204,3.4789,2749.2,2748.0,1.30977858]
[1643693013501,0.77145608,2748.5,2748.0,0.78577858]
[1643693013701,0.77145608,2748.5,2748.0,0.30387858]
[1643693014300,0.77145608,2748.5,2748.0,0.00387858]
[1643693014501,0.77145608,2748.5,2748.0,0.30387858]
[1643693014502,0.33041805,2748.4,2748.0,0.30387858]
[1643693014700,0.33041805,2748.4,2747.7,1.50976]
[1643693014701,0.51231805,2748.4,2747.7,1.50976]
[1643693014903,0.51231805,2748.4,2747.7,1.20976]
[1643693015536,0.33104676,2747.9,2747.7,1.20976]
[1643693015702,0.33104676,2747.9,2747.7,0.3]
[1643693015905,0.33104676,2747.9,2747.1,0.1819]
[1643693016143,0.33104676,2747.9,2747.3,0.6]
[1643693016144,2.17464225,2747.8,2747.3,0.6]
[1643693016340,0.1819,2747.8,2746.9,4.5083]
[1643693016539,0.1819,2747.8,2746.9,0.6]
[1643693016741,2.0799288,2747.8,2746.8,0.7819]
[1643693017042,0.1819,2747.8,2747.4,0.74941619]
[1643693017243,2.14166126,2747.8,2747.4,0.74941619]
[1643693017846,0.1819,2747.8,2747.4,0.74941619]
[1643693018343,2.07888681,2747.8,2747.4,0.74941619]
[1643693018544,2.07888681,2747.8,2747.4,1.04941619]
[1643693018545,0.1819,2747.8,2747.4,1.04941619]
[1643693018742,0.1819,2747.8,2747.4,0.74941619]
[1643693019345,2.11678282,2747.8,2747.4,0.74941619]
[1643693019984,2.11678282,2747.8,2747.0,0.90992]
[1643693020186,2.11678282,2747.8,2747.0,2.1198377]
[1643693020990,0.34154391,2747.3,2747.1,0.92770471]
[1643693021188,0.34154391,2747.3,2747.0,1.8198377]
[1643693021489,1.92572062,2747.2,2746.7,0.62009997]
[1643693021687,1.92572062,2747.2,2746.7,0.43819997]
[1643693021688,1.58416412,2747.2,2746.7,0.43819997]
[1643693021888,1.9272588,2747.2,2746.7,0.43819997]
[1643693022290,1.9272588,2747.2,2746.8,0.88477086]
[1643693022993,1.9272588,2747.2,2746.7,0.43819997]
[1643693023738,0.34154391,2747.3,2746.7,0.43819997]
[1643693024140,1.90810087,2747.2,2746.7,0.43819997]
[1643693024341,1.99423,2747.2,2746.7,0.43819997]
[1643693024541,0.34154391,2747.3,2746.7,0.43819997]
[1643693024942,2.18912579,2747.5,2746.7,0.43819997]
[1643693026075,0.1819,2747.6,2747.5,0.9522118]
[1643693026247,0.1819,2748.2,2747.5,1.2522118]
[1643693026546,5.59477542,2748.4,2747.5,1.5522118]
[1643693026745,3.847,2748.4,2747.5,1.5522118]
[1643693026951,0.90346091,2748.9,2747.6,2.1819]
[1643693026952,0.1819,2748.9,2747.6,2.1819]
[1643693027150,0.68570113,2749.1,2748.4,0.34692229]
[1643693027396,0.86760113,2749.4,2748.8,0.67174486]
[1643693027603,9.5712612,2749.6,2748.8,0.67174486]
[1643693027799,7.44,2749.6,2748.7,0.1817]
[1643693027997,7.44,2749.6,2748.6,0.3]
[1643693027998,0.19462374,2749.5,2748.6,0.3]
[1643693028203,0.19462374,2749.5,2748.3,0.1817]
[1643693028397,0.88032487,2749.5,2748.3,0.1817]
[1643693028597,0.33304943,2749.0,2748.3,0.1817]
[1643693028896,1.13059579,2749.5,2748.7,0.7684973]
[1643693029097,1.13059579,2749.5,2748.7,1.0684973]
[1643693030097,0.8398305,2749.5,2748.7,1.0684973]
[1643693030296,0.1818,2749.4,2748.7,0.3]
[1643693030498,0.1818,2749.4,2748.3,0.4817]
[1643693031339,0.4285163,2748.8,2747.9,1.81903]
[1643693031545,0.4285163,2748.8,2747.8,2.00073]
[1643693031546,0.1819,2748.7,2747.8,0.1817]
[1643693031745,0.1819,2748.7,2747.7,0.4819]
[1643693032142,0.18076121,2748.7,2747.7,0.1819]
[1643693032379,0.18076121,2748.7,2747.5,1.20878629]
[1643693032380,0.35005307,2748.3,2747.5,1.20878629]
[1643693032545,0.35005307,2748.3,2747.6,0.1819]
[1643693032943,0.35005307,2748.3,2747.2,0.1819]
[1643693032944,0.1819,2748.2,2747.2,0.1819]
[1643693033749,0.1819,2748.2,2747.5,0.40408303]
[1643693034146,0.1819,2748.2,2747.5,0.70408303]
[1643693034445,0.1819,2748.2,2747.6,0.77640337]
[1643693034906,0.02029869,2748.1,2747.6,0.77640337]
[1643693035701,0.02029869,2748.1,2747.2,2.00142]
[1643693035702,0.33097432,2747.7,2747.2,0.1819]
[1643693035909,0.33097432,2747.7,2747.1,0.1]
[1643693036710,4.37054189,2747.6,2747.1,0.1]
[1643693036912,0.99245814,2747.6,2747.1,0.1]
[1643693037109,2.8293791,2747.6,2747.1,0.1]
[1643693037309,2.84175645,2747.6,2747.1,0.1]
[1643693037511,0.40072147,2747.2,2747.1,0.1]
[1643693037710,0.99245814,2747.6,2747.1,0.1]
[1643693037912,1.53429217,2747.5,2747.1,0.1]
[1643693038113,1.2497,2747.8,2747.1,0.1]
[1643693038310,1.53419147,2747.7,2747.1,0.1]
[1643693038642,1.71609147,2747.6,2747.1,0.1]
[1643693038841,0.1819,2747.6,2747.1,0.1]
[1643693039042,0.79120298,2747.2,2747.1,0.1]
[1643693039647,0.41415868,2747.3,2747.1,0.1]
[1643693039846,0.1819,2747.8,2747.1,0.1]
[1643693040045,1.53421746,2747.7,2747.1,0.1]
[1643693040445,3.6953,2747.9,2747.1,0.1]
[1643693040446,1.53421746,2747.6,2747.1,0.1]
[1643693040649,0.1819,2747.8,2747.1,0.1]
[1643693040845,0.81671495,2747.3,2747.1,0.1]
[1643693041646,0.1819,2747.8,2747.1,0.1]
[1643693041883,1.5342094,2747.7,2747.1,0.1]
[1643693042048,0.40589599,2747.3,2747.1,0.1]
[1643693042928,0.40589599,2747.3,2746.2,1.82014]
[1643693042929,0.40589599,2747.3,2746.4,0.1819]
[1643693043090,0.40589599,2747.3,2746.2,0.1819]
[1643693043291,0.33192457,2746.8,2746.2,0.1819]
[1643693043895,0.33192457,2746.8,2746.2,0.4819]
[1643693044091,0.33192457,2746.8,2746.2,2.0021027]
[1643693044291,0.33192457,2746.8,2746.2,2.77468105]
[1643693044493,0.33192457,2746.8,2746.2,0.95447835]
[1643693044693,0.33192457,2746.8,2746.0,0.1819]
[1643693046449,0.33192457,2746.8,2746.0,1.09175998]
[1643693049347,0.33192457,2746.8,2746.0,0.1819]
[1643693051504,0.33192457,2746.8,2745.9,0.1819]
[1643693051697,21.70192457,2746.8,2745.9,0.1819]
[1643693051901,4.07537346,2746.7,2745.6,0.1819]
[1643693052203,4.07537346,2746.7,2745.4,0.19452433]
[1643693052204,0.39931557,2746.0,2745.4,0.19452433]
[1643693052399,0.39931557,2746.0,2745.2,0.2819]
[1643693052598,0.39931557,2746.0,2745.2,0.1]
[1643693052794,0.39931557,2746.0,2744.9,0.1821]
[1643693053845,0.39931557,2746.0,2745.0,1.82103]
[1643693054444,0.39822266,2746.0,2745.0,1.82103]
[1643693054648,0.35947312,2745.5,2745.0,1.82103]
[1643693054851,0.35947312,2745.5,2744.9,0.1821]
[1643693055252,2.02291749,2745.4,2744.9,0.1821]
[1643693056450,0.71338985,2745.1,2744.5,0.1]
[1643693056850,0.71338985,2745.1,2744.4,0.1821]
[1643693057505,0.35644201,2745.0,2744.4,0.1821]
[1643693057708,0.35644201,2745.0,2744.4,1.08961268]
[1643693058107,0.35644201,2745.0,2744.4,1.38961268]
[1643693058407,0.71338985,2745.1,2744.4,1.38961268]
[1643693058606,0.71338985,2745.1,2744.4,1.68961268]
[1643693059409,0.1821,2745.5,2744.4,1.68961268]
[1643693060809,0.44230492,2744.9,2744.4,0.4821]
[1643693061012,21.5521,2745.5,2744.4,0.1821]
[1643693061644,1.54465701,2745.4,2744.4,0.1821]
[1643693061846,0.82650406,2745.0,2744.4,0.1821]
[1643693062441,0.42129052,2744.8,2744.3,0.1821]
[1643693064244,0.42129052,2744.8,2744.3,2.11099908]
[1643693064448,0.42129052,2744.8,2744.3,0.1821]
[1643693065293,2.44105196,2744.7,2744.3,0.1821]
[1643693065492,2.44105196,2744.7,2743.7,2.85417533]
[1643693065493,23.81105196,2744.7,2743.7,2.85417533]
[1643693065695,3.44105196,2744.7,2743.3,0.1822]
[1643693065892,8.29445196,2744.7,2743.3,0.1822]
[1643693066091,8.30785033,2744.7,2743.3,0.1822]
[1643693066692,0.3427825,2743.8,2743.2,0.1822]
[1643693066892,0.3427825,2743.8,2743.2,0.1322]
[1643693067291,0.3427825,2743.8,2743.2,0.4322]
[1643693067893,0.3427825,2743.8,2743.2,0.1322]
[1643693068095,0.72297721,2743.7,2743.2,0.1322]
[1643693068297,1.97566284,2744.6,2743.2,0.1322]
[1643693068494,0.1822,2744.5,2743.2,0.1322]
[1643693069347,0.39625566,2743.8,2743.2,0.1322]
[1643693069544,0.80241536,2744.1,2743.2,0.1322]
[1643693070844,0.80241536,2744.1,2743.2,0.4322]
[1643693071945,0.33284683,2743.7,2743.2,0.4322]
[1643693072395,0.80241536,2744.1,2743.2,0.4322]
[1643693072594,0.80241536,2744.1,2743.3,0.10651017]
[1643693072793,0.80241536,2744.1,2743.4,0.1822]
[1643693073392,0.3619489,2744.0,2743.4,0.1822]
[1643693074919,5.0356,2744.7,2743.4,2.186004]
[1643693075105,8.8251,2745.2,2743.5,2.46473043]
[1643693075106,4.4192,2745.1,2743.5,2.46473043]
[1643693075303,4.4192,2745.1,2743.6,0.1822]
[1643693075502,4.4192,2745.1,2743.7,0.524]
[1643693075702,4.4192,2745.1,2743.8,0.1821]
[1643693075903,0.43122508,2744.3,2743.9,0.524]
[1643693076155,0.43122508,2744.3,2744.0,0.1822]
[1643693077567,0.43122508,2744.3,2743.9,0.3]
[1643693077758,0.43122508,2744.3,2743.7,1.124]
[1643693077959,0.1822,2744.7,2743.7,1.124]
[1643693078160,0.1822,2745.0,2743.8,0.1822]
[1643693079162,1.13697865,2744.5,2743.8,0.1822]
[1643693080805,1.13697865,2744.5,2743.8,0.7062]
[1643693081903,1.13697865,2744.5,2743.8,0.524]
[1643693082304,0.1822,2744.7,2743.8,0.524]
[1643693082504,0.1822,2744.7,2744.0,0.9108174]
[1643693082703,0.1822,2744.7,2744.1,0.3]
[1643693082908,4.4191,2745.1,2744.1,0.4821]
[1643693083103,0.1821,2744.7,2744.1,0.6]
[1643693083303,0.1821,2744.7,2744.1,0.3]
[1643693083504,0.1821,2744.7,2743.9,1.0]
[1643693083744,0.1821,2744.7,2743.8,1.3061]
[1643693083745,0.79817751,2744.4,2743.8,2.124]
[1643693083943,0.79817751,2744.4,2743.8,1.124]
[1643693084546,0.79817751,2744.4,2743.8,0.6]
[1643693084748,0.79817751,2744.4,2743.8,0.3]
[1643693085345,0.4271923,2744.1,2743.7,0.7821]
[1643693086947,0.4271923,2744.1,2743.5,1.13640026]
[1643693087150,0.4271923,2744.1,2743.2,1.8219961]
[1643693087151,2.09996439,2744.0,2743.2,1.8219961]
[1643693087393,2.09996439,2744.0,2743.1,4.96415595]
[1643693087394,0.1822,2744.0,2743.3,3.5]
[1643693087614,2.13934285,2744.0,2743.3,3.5]
[1643693088203,1.34768522,2743.5,2743.3,3.5]
[1643693088698,1.34768522,2743.5,2743.1,1.0966625]
[1643693089103,1.34768522,2743.5,2743.1,1.3966625]
[1643693089701,0.39933665,2743.5,2743.1,1.3966625]
[1643693090722,0.39933665,2743.5,2743.1,1.0966625]
[1643693090723,2.07212515,2743.4,2743.1,1.0966625]
[1643693090910,0.1822,2743.4,2743.1,1.0966625]
[1643693091153,2.19593954,2743.4,2743.1,1.0966625]
[1643693091356,0.1822,2743.4,2743.1,1.0966625]
[1643693091758,0.79223978,2743.3,2743.1,1.0966625]
[1643693094664,4.36710825,2743.2,2743.1,1.0966625]
[1643693094888,2.45,2743.2,2743.1,1.0966625]
[1643693095897,0.79223978,2743.3,2743.1,1.0966625]
[1643693101470,3.45,2743.2,2743.1,1.0966625]
[1643693101673,5.54326211,2743.2,2743.1,1.0966625]
[1643693102069,5.35014958,2743.2,2743.1,1.0966625]
[1643693102500,3.45,2743.2,2743.1,1.0966625]
[1643693102702,0.79223978,2743.3,2743.1,1.0966625]
[1643693102703,0.97443978,2743.3,2743.1,1.0966625]
[1643693103000,0.79223978,2743.3,2743.1,1.0966625]
[1643693105807,0.1822,2743.7,2743.1,1.3966625]
[1643693106022,0.66219997,2744.8,2743.1,1.3966625]
[1643693106023,0.1822,2744.1,2743.1,1.3966625]
[1643693106257,0.1822,2744.4,2743.2,0.1822]
[1643693106451,0.1822,2744.7,2743.2,0.1822]
[1643693106650,2.0,2743.8,2743.2,0.1822]
[1643693106850,0.32364235,2743.4,2743.2,0.1822]
[1643693107081,0.32364235,2743.4,2743.1,1.0966625]
[1643693107250,0.32364235,2743.4,2743.1,1.3966625]
[1643693107655,0.32364235,2743.4,2743.1,1.0966625]
[1643693108057,0.32364235,2743.4,2743.1,1.3966625]
[1643693108664,0.32364235,2743.4,2743.1,1.0966625]
[1643693110400,0.32364235,2743.4,2743.1,1.3966625]
[1643693110801,0.32364235,2743.4,2743.1,1.0966625]
[1643693111803,1.03842269,2743.4,2743.1,1.0966625]
[1643693113307,0.32364235,2743.4,2743.1,1.0966625]
[1643693117150,0.77621626,2743.2,2743.1,1.0966625]
[1643693117399,2.8025744,2743.2,2743.1,1.0966625]
[1643693118205,0.77621626,2743.2,2743.1,1.0966625]
[1643693118606,5.31864178,2743.2,2743.1,6.25e-05]
[1643693119805,3.35,2743.2,2743.1,6.25e-05]
[1643693120207,6.72084761,2743.2,2743.1,6.25e-05]
[1643693121161,28.09084761,2743.2,2743.1,6.25e-05]
[1643693121359,4.7538,2743.2,2743.1,6.25e-05]
[1643693122365,6.65892048,2743.2,2743.1,6.25e-05]
[1643693122567,28.02892048,2743.2,2743.1,6.25e-05]
[1643693122865,4.7538,2743.2,2743.1,6.25e-05]
[1643693123566,6.65636313,2743.2,2743.1,6.25e-05]
[1643693124368,4.7538,2743.2,2743.1,6.25e-05]
[1643693124768,6.63309759,2743.2,2743.1,6.25e-05]
[1643693125710,6.45089759,2743.2,2743.1,6.25e-05]
[1643693126810,6.63309759,2743.2,2743.1,6.25e-05]
[1643693127912,28.00309759,2743.2,2743.1,6.25e-05]
[1643693128111,29.00309759,2743.2,2743.1,6.25e-05]
[1643693129352,28.82089759,2743.2,2743.1,6.25e-05]
[1643693129550,27.82089759,2743.2,2743.1,6.25e-05]
[1643693130354,29.35745357,2743.2,2743.1,6.25e-05]
[1643693130753,27.82089759,2743.2,2743.1,6.25e-05]
[1643693131355,29.35744364,2743.2,2743.1,6.25e-05]
[1643693131755,30.35744364,2743.2,2743.1,6.25e-05]
[1643693135015,30.29214605,2743.2,2743.1,6.25e-05]
[1643693135209,30.29214605,2743.2,2742.5,1.36434687]
[1643693135210,7.43017751,2743.1,2742.5,1.36434687]
[1643693135406,7.43017751,2743.1,2742.2,2.0057378]
[1643693135407,3.53677547,2743.0,2742.2,0.1822]
[1643693135703,2.55737253,2742.9,2742.2,0.1822]
[1643693135905,22.90677547,2742.8,2742.2,0.1822]
[1643693136159,0.72573162,2742.5,2742.2,0.1822]
[1643693136355,0.72573162,2742.5,2741.5,0.1822]
[1643693136657,1.53695868,2742.4,2741.5,0.1822]
[1643693136868,5.18835868,2742.4,2741.3,0.1822]
[1643693137158,2.25215889,2742.3,2741.3,0.1822]
[1643693137358,0.36767467,2741.5,2741.2,0.1822]
[1643693138757,0.36767467,2741.5,2741.0,1.46434687]
[1643693138758,0.84565759,2741.8,2741.1,0.1822]
[1643693140017,0.3756389,2741.7,2741.1,0.1822]
[1643693142304,2.26889732,2741.7,2741.1,0.1822]
[1643693142508,2.26889732,2741.7,2740.3,0.02653533]
[1643693142509,7.59,2741.6,2740.3,0.02653533]
[1643693142716,7.59,2741.6,2739.8,1.279025]
[1643693142717,0.0128709,2740.6,2739.8,1.279025]
[1643693142908,0.1824,2740.5,2739.8,1.096725]
[1643693143106,0.34673291,2740.1,2739.8,1.096725]
[1643693143305,0.85603148,2740.0,2739.8,1.096725]
[1643693143951,0.85603148,2740.0,2739.8,1.0966625]
[1643693144555,0.35432099,2739.9,2739.8,1.0966625]
[1643693144861,2.36991514,2739.9,2739.8,1.0966625]
[1643693145156,2.36991514,2739.9,2739.3,0.1824]
[1643693145361,2.28933628,2739.9,2739.3,0.1824]
[1643693145559,2.28560244,2739.9,2739.7,0.04035807]
[1643693145756,0.35432099,2739.9,2739.7,0.04035807]
[1643693146361,1.92471646,2739.8,2739.7,0.04035807]
[1643693146959,0.35432099,2739.9,2739.7,0.04035807]
[1643693147913,3.5310769,2741.2,2739.7,0.04035807]
[1643693147914,11.5954,2740.7,2739.8,0.1824]
[1643693148107,4.5591,2740.7,2739.8,0.1824]
[1643693148803,0.89999823,2740.5,2739.8,0.1824]
[1643693149005,0.44972768,2740.1,2739.8,0.1824]
[1643693149202,0.89999823,2740.5,2739.8,0.1824]
[1643693150414,0.43395084,2740.3,2739.8,0.1824]
[1643693151703,0.89999823,2740.5,2739.8,0.1824]
[1643693152858,2.0,2740.4,2739.8,0.1824]
[1643693153067,0.31943542,2740.3,2739.7,0.04035807]
[1643693153259,1.15797013,2739.8,2739.7,0.04035807]
[1643693153458,1.15797013,2739.8,2739.6,0.04092649]
[1643693153957,1.15797013,2739.8,2739.2,0.04320019]
[1643693154158,1.15797013,2739.8,2739.3,0.1824]
[1643693154557,1.15797013,2739.8,2739.4,0.04206334]
[1643693155602,0.43357933,2739.8,2739.4,0.04206334]
[1643693157502,0.80027015,2739.7,2739.4,0.04206334]
[1643693158107,0.80027015,2739.7,2739.3,0.04263176]
[1643693159454,0.1824,2739.6,2739.3,0.04263176]
[1643693159857,0.1824,2739.6,2738.9,0.04490546]
[1643693160060,0.98267015,2739.7,2738.9,0.04490546]
[1643693163514,0.80027015,2739.7,2738.9,0.04490546]
[1643693164719,0.1824,2740.1,2738.9,0.04490546]
[1643693165118,0.1824,2740.1,2739.1,0.91246]
[1643693165317,1.483186,2739.7,2739.1,0.91246]
[1643693165516,1.483186,2739.7,2739.2,0.04320019]
[1643693165717,1.483186,2739.7,2739.4,0.3594505]
[1643693166151,1.483186,2739.7,2739.5,0.04149492]
[1643693166754,1.48222196,2739.7,2739.5,0.04149492]